lending/lending_fUSD_20260119
["ID","MTS","AMOUNT","RATE_DAILY","PERIOD"]
[402715207,1768829440925,-350.0,0.00015567,2]
[402715208,1768829440936,-350.0,0.00015567,2]
[402715209,1768829440946,-350.0,0.00015567,2]
[402715210,1768829440957,-350.0,0.00015567,2]
[402715211,1768829440968,-350.0,0.00015567,2]
[402715212,1768829440979,-154.75776,0.00015567,2]
[402715213,1768829440990,-413.65406673,0.00015647,2]
[402715214,1768829441000,-407.84620119,0.00015695,2]
[402715215,1768829441012,-292.42921136,0.00015695,2]
[402715216,1768829441023,-366.59852564,0.00015695,2]
[402715217,1768829441034,-500.0,0.00015695,2]
[402715218,1768829441044,-500.0,0.00015695,2]
[402715219,1768829441055,-302.41974858,0.00015695,2]
[402715220,1768829441065,-500.0,0.00015695,2]
[402715221,1768829441076,-527.65137104,0.00015695,2]
[402715222,1768829441086,-500.0,0.00015695,2]
[402715223,1768829441097,-500.0,0.00015695,2]
[402715224,1768829441107,-500.0,0.00015695,2]
[402715225,1768829441118,-276.08,0.00015839,2]
[402715226,1768829441128,-1099.99,0.0001585,2]
[402715227,1768829441139,-700.0,0.000159,2]
[402715228,1768829441150,-500.0,0.00015973,2]
[402715229,1768829441162,-153.34721638,0.00016,2]
[402715230,1768829441173,-1000.0,0.00016043,2]
[402715231,1768829441183,-276.1,0.00016113,2]
[402715232,1768829441194,-151.0,0.00016121,2]
[402715233,1768829441204,-151.0,0.00016121,2]
[402715234,1768829441215,-150.0,0.000162,2]
[402715235,1768829441226,-150.0,0.000162,2]
[402715236,1768829441237,-150.0,0.000162,2]
[402715237,1768829441248,-150.0,0.000162,2]
[402715238,1768829441260,-150.0,0.000162,2]
[402715239,1768829441271,-22891.15,0.000162,5]
[402715240,1768829441282,-1772.22,0.00016275,2]
[402715241,1768829441293,-1772.22,0.00016317,2]
[402715242,1768829441304,-206.4,0.00016332,2]
[402715243,1768829441315,-1772.22,0.0001636,2]
[402715244,1768829441326,-950.29,0.00016394,2]
[402715245,1768829441336,-150.0,0.00016395,2]
[402715246,1768829441347,-1772.22,0.00016403,2]
[402715247,1768829441358,-249.36693846,0.00016438,2]
[402715248,1768829441368,-165.29,0.0001644,2]
[402715249,1768829441379,-1772.22,0.00016446,2]
[402715250,1768829441390,-1772.22,0.00016489,2]
[402715251,1768829441401,-500.0,0.000165,2]
[402715252,1768829441411,-1772.22,0.00016532,2]
[402715253,1768829441422,-1031.34,0.00016544,2]
[402715254,1768829441432,-200.0,0.0001655,2]
[402715255,1768829441443,-1772.22,0.00016574,2]
[402715256,1768829441454,-237.0,0.00016595,2]
[402715257,1768829441465,-1772.22,0.00016617,2]
[402715258,1768829441476,-153.34721638,0.00016634,2]
[402715259,1768829441487,-1772.22,0.0001666,2]
[402715260,1768829441498,-200.0,0.00016662,2]
[402715261,1768829441508,-1772.22,0.00016703,2]
[402715262,1768829441521,-1772.22,0.00016746,2]
[402715263,1768829441532,-185.02,0.00016768,2]
[402715264,1768829441543,-1772.22,0.00016789,2]
[402715265,1768829441553,-1772.22,0.00016831,2]
[402715266,1768829441567,-16223.89,0.00016845,2]
[402715267,1768829441578,-1772.22,0.00016874,2]
[402715268,1768829441590,-800.0,0.000169,3]
[402715269,1768829441600,-607.0,0.000169,2]
[402715270,1768829441611,-1772.22,0.00016917,2]
[402715271,1768829441622,-420.0,0.00016918,2]
[402715272,1768829441633,-150.99,0.00016922,2]
[402715273,1768829441644,-1723.06,0.00016922,2]
[402715274,1768829441655,-150.99,0.00016922,2]
[402715275,1768829441666,-1192.77,0.00016922,2]
[402715276,1768829441676,-9999.99,0.00016922,2]
[402715277,1768829441687,-1536.27,0.00016922,2]
[402715278,1768829441698,-5239.07,0.00016922,2]
[402715279,1768829441709,-1762.2,0.0001695,2]
[402715280,1768829441720,-629.0,0.00016957,2]
[402715281,1768829441731,-1772.22,0.0001696,2]
[402715282,1768829441742,-1995.57846716,0.00016991,2]
[402715283,1768829441753,-250.0,0.00017,2]
[402715284,1768829441763,-500.0,0.00017,2]
[402715285,1768829441775,-19782.22610136,0.00017,2]
[402715286,1768829441785,-1772.22,0.00017003,2]
[402715287,1768829441797,-1680.0,0.00017004,2]
[402715288,1768829441808,-150.0,0.00017013,2]
[402715289,1768829441819,-250.0,0.00017013,2]
[402715290,1768829441830,-162.0,0.0001704,2]
[402715291,1768829441843,-1772.22,0.00017045,2]
[402715292,1768829441854,-1772.22,0.00017088,2]
[402715293,1768829441866,-574.12855637,0.00017099,2]
[402715294,1768829441878,-168.15828134,0.00017099,2]
[402715295,1768829441889,-206.0,0.00017258,2]
[402715296,1768829441901,-1000.0,0.0001726,2]
[402715297,1768829441913,-153.34721638,0.00017267,2]
[402715298,1768829441924,-3230.0,0.00017298,2]
[402715299,1768829441936,-1031.34,0.00017371,2]
[402715300,1768829441947,-677.59,0.00017452,2]
[402715301,1768829441958,-500.0,0.00017479,2]
[402715302,1768829441969,-500.0,0.000175,2]
[402715303,1768829441980,-206.0,0.00017504,2]
[402715304,1768829441991,-503.0,0.00017507,2]
[402715305,1768829442002,-1000.0,0.00017534,2]
[402715306,1768829442012,-168.0,0.00017544,2]
[402715307,1768829442022,-222.5,0.00017561,2]
[402715308,1768829442032,-222.5,0.00017601,2]
[402715309,1768829442042,-500.0,0.00017615,2]
[402715310,1768829442052,-500.0,0.00017615,2]
[402715311,1768829442063,-150.0,0.00017615,2]
[402715312,1768829442073,-206.0,0.00017619,2]
[402715313,1768829442083,-333.25335115,0.00017635,2]
[402715314,1768829442092,-587.8984132,0.00017635,2]
[402715315,1768829442101,-879.46086626,0.00017635,2]
[402715316,1768829442111,-1189.9404,0.00017635,2]
[402715317,1768829442121,-1809.93197595,0.0001764,2]
[402715318,1768829442132,-222.5,0.00017641,2]
[402715319,1768829442143,-595.37131296,0.00017647,2]
[402715320,1768829442153,-500.0,0.00017654,2]
[402715321,1768829442164,-206.0,0.00017669,2]
[402715322,1768829442174,-500.0,0.0001767,2]
[402715323,1768829442185,-500.0,0.0001767,2]
[402715324,1768829442196,-150.0,0.0001767,2]
[402715325,1768829442206,-831.0,0.0001768,2]
[402715326,1768829442217,-222.5,0.00017681,2]
[402715327,1768829442228,-222.5,0.00017721,2]
[402715328,1768829442239,-500.0,0.00017725,2]
[402715329,1768829442250,-500.0,0.00017725,2]
[402715330,1768829442260,-200.0,0.00017725,2]
[402715331,1768829442271,-615.0,0.00017747,2]
[402715332,1768829442281,-1407.0,0.00017747,2]
[402715333,1768829442292,-2440.0,0.00017747,2]
[402715334,1768829442303,-222.5,0.00017761,2]
[402715335,1768829442313,-500.0,0.00017779,2]
[402715336,1768829442323,-500.0,0.00017779,2]
[402715337,1768829442333,-2000.0,0.000178,2]
[402715338,1768829442343,-222.5,0.000178,2]
[402715339,1768829442354,-150.0,0.00017808,2]
[402715340,1768829442364,-1000.0,0.00017808,2]
[402715341,1768829442374,-1038.00021,0.0001783,2]
[402715342,1768829442384,-500.0,0.00017834,2]
[402715343,1768829442395,-500.0,0.00017834,2]
[402715344,1768829442405,-222.5,0.0001784,2]
[402715345,1768829442415,-150.0,0.00017863,2]
[402715346,1768829442425,-222.5,0.0001788,2]
[402715347,1768829442435,-1038.00021,0.0001788,2]
[402715348,1768829442445,-500.0,0.00017889,2]
[402715349,1768829442456,-500.0,0.00017889,2]
[402715350,1768829442466,-580.0234,0.000179,2]
[402715351,1768829442476,-19988.3136,0.000179,2]
[402715352,1768829442487,-165.75900184,0.000179,2]
[402715353,1768829442497,-165.75900182,0.000179,2]
[402715354,1768829442507,-153.34721638,0.000179,2]
[402715355,1768829442518,-165.75900182,0.000179,2]
[402715356,1768829442531,-165.75900182,0.000179,2]
[402715357,1768829442541,-165.75900182,0.000179,2]
[402715358,1768829442551,-165.75900182,0.000179,2]
[402715359,1768829442562,-3719.0,0.000179,2]
[402715360,1768829442572,-150.0,0.00017918,2]
[402715362,1768829442583,-222.5,0.0001792,2]
[402715364,1768829442593,-1038.00021,0.0001793,2]
[402715366,1768829442604,-5800.0,0.00017941,2]
[402715368,1768829442614,-500.0,0.00017944,2]
[402715370,1768829442624,-500.0,0.00017944,2]
[402715371,1768829442635,-5800.0,0.0001795,2]
[402715373,1768829442645,-5800.0,0.00017958,2]
[402715374,1768829442655,-222.5,0.0001796,2]
[402715375,1768829442666,-151.0,0.00017964,2]
[402715376,1768829442676,-5800.0,0.00017967,2]
[402715377,1768829442686,-150.0,0.00017972,2]
[402715378,1768829442697,-500.0,0.00017973,2]
[402715379,1768829442707,-500.0,0.00017973,2]
[402715380,1768829442718,-500.0,0.00017973,2]
[402715381,1768829442728,-5800.0,0.00017975,2]
[402715382,1768829442739,-1038.00021,0.0001798,2]
[402715383,1768829442749,-5800.0,0.00017982,2]
[402715384,1768829442760,-5800.0,0.00017984,2]
[402715385,1768829442770,-5800.0,0.0001799,2]
[402715386,1768829442781,-238.37158394,0.0001799,2]
[402715387,1768829442791,-238.37158394,0.0001799,2]
[402715388,1768829442801,-238.37158394,0.0001799,2]
[402715389,1768829442812,-5800.0,0.00017992,2]
[402715390,1768829442823,-231.0,0.00017993,2]
[402715391,1768829442834,-151.0,0.00017997,2]
[402715392,1768829442845,-500.0,0.00017999,2]
[402715393,1768829442855,-500.0,0.00017999,2]
[402715394,1768829442866,-500.0,0.00017999,2]
[402715395,1768829442876,-500.0,0.00017999,2]
[402715396,1768829442887,-500.0,0.00017999,2]
[402715397,1768829442898,-500.0,0.00017999,2]
[402715398,1768829442908,-500.0,0.00017999,2]
[402715399,1768829442919,-500.0,0.00017999,2]
[402715400,1768829442929,-500.0,0.00017999,2]
[402715401,1768829442941,-500.0,0.00017999,2]
[402715402,1768829442951,-163.26702471,0.00017999,2]
[402715403,1768829442962,-697.54324621,0.00017999,2]
[402715404,1768829442972,-300.0,0.00017999,2]
[402715405,1768829442983,-634.42261924,0.00017999,2]
[402715406,1768829442995,-11791.74278883,0.00017999,2]
[402715407,1768829443005,-13671.12709858,0.00017999,2]
[402715408,1768829443016,-300.0,0.00017999,2]
[402715409,1768829443027,-666.0,0.00017999,2]
[402715410,1768829443037,-150.0,0.00018,2]
[402715411,1768829443048,-1613145.00236027,0.00018,2]
[402715412,1768829443060,-219299.22481809,0.00018,2]
[402715413,1768829443070,-173.58,0.00018,2]
[402715414,1768829443080,-804864.99643684,0.00018,2]
[402715415,1768829444047,-366.77809616,0.00018,2]
[402715419,1768829445246,-1200.0,0.00018,2]
[402715420,1768829445311,-289.16,0.00018,2]
[402715421,1768829445342,-1613.6,0.00018,2]
[402715426,1768829445598,-637.08206291,0.00017747,2]
[402715427,1768829445673,-2835.91793709,0.00017747,2]
[402715428,1768829445682,-19580.3583697,0.00018,2]
[402715429,1768829445693,-722.96128865,0.00018,2]
[402715430,1768829445725,-841.26623706,0.00018,2]
[402715431,1768829462885,-502.72610328,0.00015466,2]
[402715432,1768829462908,-90.69522104,0.00015467,2]
[402715433,1768829465655,-179.75030881,0.00015467,2]
[402715434,1768829469228,-266.43552422,0.00015467,2]
[402715435,1768829471392,-182.31053033,0.00015466,2]
[402715436,1768829472885,-215.21420109,0.00015466,2]
[402715437,1768829476834,-102.47526858,0.00015466,2]
[402715438,1768829476857,-171.73004629,0.00015466,2]
[402715439,1768829476880,-37.41187011,0.00015466,2]
[402715440,1768829479374,-143.71632249,0.00015466,2]
[402715441,1768829479398,-39.1923927,0.00015466,2]
[402715442,1768829480913,-176.30234567,0.00015466,2]
[402715443,1768829484750,-23.71237432,0.00015466,2]
[402715444,1768829484774,-171.38700965,0.00015466,2]
[402715445,1768829486904,-228.39198199,0.00015466,2]
[402715446,1768829487963,-100.22100836,0.00015466,2]
[402715447,1768829487986,-67.50659849,0.00015466,2]
[402715448,1768829490036,-217.95721102,0.00015466,2]
[402715449,1768829490062,-78.90566753,0.00015466,2]
[402715450,1768829492656,-191.02534252,0.00015466,2]
[402715451,1768829494933,-151.99077629,0.00015466,2]
[402715452,1768829496051,-78.07821366,0.00015466,2]
[402715453,1768829496076,-76.5463144,0.00015466,2]
[402715454,1768829498718,-76.35830063,0.00015466,2]
[402715455,1768829498746,-116.14608257,0.00015466,2]
[402715456,1768829502434,-304.88377365,0.00015466,2]
[402715457,1768829505289,-78.97014378,0.00015466,2]
[402715458,1768829505314,-167.86917764,0.00015466,2]
[402715459,1768829509969,-300.0,0.00015466,2]
[402715460,1768829511466,-89.91271269,0.00015466,2]
[402715461,1768829511493,-186.08728731,0.00015466,2]
[402715462,1768829513523,-253.16067858,0.00015466,2]
[402715463,1768829516642,-60.75203411,0.00015466,2]
[402715464,1768829516671,-176.79782439,0.00015466,2]
[402715465,1768829518183,-235.83213308,0.00015466,2]
[402715466,1768829521380,-195.0,0.00015465,2]
[402715467,1768829525511,-105.0,0.00015465,2]
[402715468,1768829525544,-87.37004253,0.00015466,2]
[402715469,1768829525574,-204.60067888,0.00015466,2]
[402715470,1768829528800,-295.39932112,0.00015466,2]
[402715471,1768829528823,-102.05940074,0.00015466,2]
[402715472,1768829530045,-166.66,0.00015466,2]
[402715473,1768829532726,-75.99018011,0.00015466,2]
[402715474,1768829532756,-500.0,0.00015466,2]
[402715475,1768829532783,-294.95854736,0.00015466,2]
[402715476,1768829536455,-205.04145264,0.00015466,2]
[402715477,1768829536484,-137.00595519,0.00015466,2]
[402715478,1768829538408,-255.88840929,0.00015465,2]
[402715479,1768829543418,-222.07799881,0.00015465,2]
[402715480,1768829550909,-192.14418329,0.00015465,2]
[402715481,1768829550939,-122.84127182,0.00015466,2]
[402715482,1768829555133,-209.78581975,0.00015466,2]
[402715483,1768829557142,-30.36695324,0.00015466,2]
[402715484,1768829557169,-211.13810072,0.00015466,2]
[402715485,1768829558621,-172.86191901,0.00015466,2]
[402715486,1768829560619,-115.99998027,0.00015466,2]
[402715487,1768829560650,-292.06724909,0.00015466,2]
[402715488,1768829562720,-207.93275091,0.00015466,2]
[402715489,1768829562749,-121.48875428,0.00015466,2]
[402715490,1768829565096,-378.51124572,0.00015466,2]
[402715491,1768829565124,-234.21552399,0.00015466,2]
[402715492,1768829567231,-189.91285204,0.00015466,2]
[402715493,1768829570832,-75.87162397,0.00015466,2]
[402715494,1768829570858,-169.88456738,0.00015466,2]
[402715495,1768829572945,-248.85453284,0.00015466,2]
[402715496,1768829575041,-81.26089978,0.00015466,2]
[402715497,1768829575066,-128.79586805,0.00015466,2]
[402715498,1768829578252,-176.13495919,0.00015465,2]
[402715499,1768829578280,-23.48937135,0.00015466,2]
[402715500,1768829580774,-347.7147606,0.00015466,2]
[402715501,1768829580801,-17.83606386,0.00015466,2]
[402715502,1768829582360,-259.43,0.00015465,2]
[402715503,1768829585499,-40.57,0.00015465,2]
[402715504,1768829585528,-148.58081848,0.00015466,2]
[402715505,1768829588897,-187.64021808,0.00015466,2]
[402715506,1768829590493,-145.94289958,0.00015466,2]
[402715507,1768829590519,-500.0,0.00015466,2]
[402715508,1768829590548,-165.62854481,0.00015466,2]
[402715509,1768829592245,-329.22826837,0.00015466,2]
[402715510,1768829593535,-5.14318682,0.00015466,2]
[402715511,1768829593563,-245.48242205,0.00015466,2]
[402715512,1768829596728,-254.51757795,0.00015466,2]
[402715513,1768829596753,-137.41797245,0.00015466,2]
[402715514,1768829599115,-151.0,0.00015464,2]
[402715515,1768829599142,-171.63552027,0.00015466,2]
[402715516,1768829600650,-165.46142959,0.00015466,2]
[402715520,1768829604726,-25.48507769,0.00015466,2]
[402715521,1768829604751,-227.96712384,0.00015466,2]
[402715522,1768829606339,-195.98,0.00015466,2]
[402715523,1768829608805,-76.05287616,0.00015466,2]
[402715524,1768829608833,-264.95292384,0.00015466,2]
[402715525,1768829613140,-176.59405375,0.00015466,2]
[402715526,1768829616624,-58.45302241,0.00015466,2]
[402715527,1768829616654,-123.12838727,0.00015466,2]
[402715528,1768829620842,-205.66373875,0.00015466,2]
[402715529,1768829623735,-134.21721026,0.00015466,2]
[402715530,1768829623767,-114.88502431,0.00015466,2]
[402715531,1768829628671,500.0,0.00015366,2]
[402715532,1768829629454,-161.17307281,0.00015466,2]
[402715533,1768829634642,-223.94190288,0.00015466,2]
[402715534,1768829634669,-76.05809712,0.00015466,2]
[402715535,1768829636680,-202.97204716,0.00015466,2]
[402715536,1768829639330,-220.96985572,0.00015466,2]
[402715537,1768829639357,-29.03014428,0.00015466,2]
[402715538,1768829640858,-231.48647863,0.00015466,2]
[402715539,1768829645367,-170.67193967,0.00015466,2]
[402715540,1768829646877,-68.81143742,0.00015466,2]
[402715541,1768829646903,-212.09914349,0.00015466,2]
[402715542,1768829648446,-217.54982123,0.00015466,2]
[402715543,1768829652982,-70.35103528,0.00015466,2]
[402715544,1768829653011,-352.24036193,0.00015466,2]
[402715545,1768829654983,-147.75963807,0.00015466,2]
[402715546,1768829655009,-4.97785585,0.00015466,2]
[402715547,1768829656421,-214.38294553,0.00015466,2]
[402715548,1768829665925,-257.25850126,0.00015466,2]
[402715549,1768829672393,-23.38069736,0.00015466,2]
[402715550,1768829672418,-186.90196683,0.00015466,2]
[402715551,1768829678540,-151.02826612,0.00015466,2]
[402715552,1768829680976,-162.06976705,0.00015466,2]
[402715553,1768829681005,-219.72487631,0.00015466,2]
[402715554,1768829685466,-155.82084239,0.00015466,2]
[402715555,1768829687556,-124.4542813,0.00015466,2]
[402715556,1768829687584,-405.15180338,0.00015466,2]
[402715557,1768829692757,-94.84819662,0.00015466,2]
[402715558,1768829692780,-69.14278071,0.00015466,2]
[402715559,1768829694290,-290.77299761,0.00015466,2]
[402715560,1768829696375,-230.39093188,0.00015466,2]
[402715561,1768829701459,-21.27231116,0.00015466,2]
[402715562,1768829701483,-145.38768901,0.00015466,2]
[402715563,1768829703417,-5.61231099,0.00015466,2]
[402715564,1768829703448,-287.27718627,0.00015466,2]
[402715565,1768829705433,-180.14659574,0.00015466,2]
[402715566,1768829709462,-180.14659575,0.00015466,2]
[402715567,1768829710893,-165.56161068,0.00015466,2]
[402715568,1768829713558,-156.20992786,0.00015466,2]
[402715569,1768829717328,-214.24848571,0.00015466,2]
[402715570,1768829720391,-129.54158643,0.00015466,2]
[402715571,1768829720413,-58.35451621,0.00015466,2]
[402715572,1768829725581,-151.0,0.00015464,2]
[402715573,1768829725604,-116.93573343,0.00015466,2]
[402715574,1768829727686,-211.57776192,0.00015466,2]
[402715575,1768829727710,-88.42223808,0.00015466,2]
[402715576,1768829729622,-64.9249783,0.00015466,2]
[402715577,1768829729645,-154.97974583,0.00015466,2]
[402715578,1768829735909,-224.77917528,0.00015466,2]
[402715579,1768829737811,-209.19268331,0.00015466,2]
[402715580,1768829741445,-66.02814141,0.00015466,2]
[402715581,1768829741473,-123.79598663,0.00015466,2]
[402715582,1768829743322,2886.82952139,0.00027,120]
[402715583,1768829743489,-300.0,0.00015466,2]
[402715584,1768829745581,-76.20401337,0.00015466,2]
[402715585,1768829745610,-300.0,0.00015466,2]
[402715586,1768829745644,-289.53026103,0.00015466,2]
[402715587,1768829750639,-152.0361023,0.00015466,2]
[402715588,1768829754383,-58.43363667,0.00015466,2]
[402715589,1768829754404,-45.02025417,0.00015466,2]
[402715590,1768829754425,-183.32129454,0.00015466,2]
[402715591,1768829754447,-17.17498803,0.00015466,2]
[402715592,1768829757357,-197.8228604,0.00015466,2]
[402715593,1768829758799,-166.46688855,0.00015466,2]
[402715594,1768829760652,-135.71025105,0.00015466,2]
[402715595,1768829760677,-133.82501197,0.00015466,2]
[402715596,1768829760701,-105.77959411,0.00015466,2]
[402715597,1768829766248,-65.50457825,0.00015466,2]
[402715598,1768829766270,-97.88778963,0.00015466,2]
[402715599,1768829767833,-139.11221037,0.00015466,2]
[402715600,1768829767858,-121.83140546,0.00015466,2]
[402715601,1768829772771,-133.00080148,0.00015466,2]
[402715602,1768829772793,-33.65919852,0.00015467,2]
[402715603,1768829774743,-227.68167756,0.00015467,2]
[402715604,1768829776769,-170.23876717,0.00015467,2]
[402715605,1768829778200,341.0058,0.00015365,2]
[402715606,1768829783081,-328.54068892,0.00015467,2]
[402715607,1768829785123,-249.92279193,0.00015467,2]
[402715608,1768829789031,-465.77262183,0.00015467,2]
[402715609,1768829789058,-6.87105381,0.00015467,2]
[402715610,1768829790573,-309.84955089,0.00015467,2]
[402715611,1768829792415,-296.73090551,0.00015467,2]
[402715612,1768829799283,-446.58901914,0.00015467,2]
[402715613,1768829806331,-165.85848592,0.00015467,2]
[402715614,1768829807887,-275.95589045,0.00015467,2]
[402715615,1768829813402,-230.13716006,0.00015467,2]
[402715616,1768829814678,-264.87733376,0.00015467,2]
[402715617,1768829816390,-300.0,0.00015467,2]
[402715618,1768829820843,-237.04970593,0.00015467,2]
[402715619,1768829824326,-170.81,0.00015467,2]
[402715620,1768829825356,-165.17107784,0.00015467,2]
[402715621,1768829829325,-166.66085984,0.00015466,2]
[402715622,1768829830852,-204.7351323,0.00015466,2]
[402715623,1768829832852,-159.77860431,0.00015466,2]
[402715624,1768829836757,-159.99371674,0.00015466,2]
[402715625,1768829838714,-245.53446097,0.00015466,2]
[402715626,1768829840216,-171.8454835,0.00015466,2]
[402715627,1768829844654,-151.0,0.00015463,2]
[402715628,1768829844679,-57.46022007,0.00015463,2]
[402715629,1768829848011,-93.53977993,0.00015463,2]
[402715630,1768829848034,-87.23043687,0.00015464,2]
[402715631,1768829852563,-63.76956313,0.00015464,2]
[402715632,1768829852587,-262.60598716,0.00015466,2]
[402715633,1768829854677,-232.09640326,0.00015466,2]
[402715634,1768829856713,-242.36082572,0.00015466,2]
[402715635,1768829860948,-161.10628558,0.00015466,2]
[402715636,1768829862571,-369.51434276,0.00015466,2]
[402715637,1768829864733,-213.26579067,0.00015466,2]
[402715638,1768829869820,-532.0,0.00015466,2]
[402715639,1768829871891,-353.11249402,0.00015466,2]
[402715640,1768829877571,-266.37830976,0.00015466,2]
[402715641,1768829879659,-222.83997705,0.00015466,2]
[402715642,1768829882916,382.0,0.00015452,2]
[402715643,1768829885386,-300.0,0.00015465,2]
[402715644,1768829887035,-255.57381864,0.00015466,2]
[402715645,1768829889033,-279.24068855,0.00015466,2]
[402715646,1768829892358,-164.736033,0.00015466,2]
[402715647,1768829895929,-151.0,0.00015463,2]
[402715648,1768829895952,-58.44576545,0.00015463,2]
[402715649,1768829901851,-92.55423455,0.00015463,2]
[402715650,1768829901874,-273.07438019,0.00015465,2]
[402715651,1768829903471,1119.26215639,0.00015465,5]
[402715652,1768829903919,-277.31602,0.00015465,2]
[402715653,1768829906012,-69.60959981,0.00015465,2]
[402715654,1768829906036,-133.01786292,0.00015465,2]
[402715655,1768829906066,300.0,0.000147,5]
[402715656,1768829908149,700.0,0.000148,5]
[402715657,1768829908799,-116.98213708,0.00015465,2]
[402715658,1768829908822,-175.68786292,0.00015466,2]
[402715659,1768829910240,957.23386957,0.000149,5]
[402715660,1768829910270,142.76613043,0.000149,5]
[402715661,1768829910337,-450.0,0.00015466,2]
[402715662,1768829912379,-341.96796575,0.00015466,2]
[402715663,1768829917323,-182.044,0.00015465,2]
[402715664,1768829917346,-71.10861541,0.00015466,2]
[402715665,1768829920956,-448.17538797,0.00015466,2]
[402715666,1768829924487,-235.44063704,0.00015466,2]
[402715667,1768829926054,-263.23449992,0.00015466,2]
[402715668,1768829926339,785.41,0.00015456,3]
[402715669,1768829927592,-390.51827321,0.00015466,2]
[402715672,1768829932121,-184.9149769,0.00015466,2]
[402715673,1768829935390,-272.56115898,0.00015466,2]
[402715674,1768829941285,-192.71582831,0.00015466,2]
[402715675,1768829942425,-195.0,0.00015465,2]
[402715677,1768829945577,-105.0,0.00015465,2]
[402715678,1768829945602,-257.18103428,0.00015466,2]
[402715679,1768829948710,-173.15593603,0.00015466,2]
[402715680,1768829950328,-36.71924902,0.00015466,2]
[402715681,1768829950350,-253.67884737,0.00015466,2]
[402715682,1768829950374,-25.07819325,0.00015466,2]
[402715683,1768829952200,159.3957881,0.00015366,2]
[402715684,1768829952460,-165.43318937,0.00015466,2]
[402715685,1768829958456,-114.77760377,0.00015466,2]
[402715686,1768829958480,-185.22239623,0.00015466,2]
[402715687,1768829960496,-9.77760377,0.00015466,2]
[402715688,1768829960522,-574.00101009,0.00015466,2]
[402715689,1768829962581,162.0,0.000273,120]
[402715690,1768829964217,-151.0,0.00015463,2]
[402715691,1768829964241,-6.5447445,0.00015463,2]
[402715692,1768829966220,-144.4552555,0.00015463,2]
[402715693,1768829966245,-45.38036431,0.00015464,2]
[402715695,1768829970037,-105.61963569,0.00015464,2]
[402715696,1768829970064,-204.5447445,0.00015466,2]
[402715697,1768829975726,-300.0,0.00015466,2]
[402715698,1768829977238,-214.52371036,0.00015466,2]
[402715699,1768829981339,-303.20627472,0.00015466,2]
[402715700,1768829983632,-205.69448616,0.00015466,2]
[402715701,1768829989106,-256.59948188,0.00015466,2]
[402715702,1768829990755,-300.0,0.00015466,2]
[402715703,1768829996479,-348.75294221,0.00015466,2]
[402715704,1768830000091,-219.97604688,0.00015466,2]
[402715705,1768830008826,156.25,0.00015456,2]
[402715706,1768830009043,156.25,0.00015456,2]
[402715707,1768830009117,-300.0,0.00015465,2]
[402715708,1768830009396,156.25,0.00015456,2]
[402715709,1768830009620,156.25,0.00015456,2]
[402715710,1768830010902,199.63,0.00015456,2]
[402715711,1768830013511,-303.91355447,0.00015465,2]
[402715712,1768830015402,730.78384483,0.00015456,2]
[402715713,1768830015928,-300.0,0.00015465,2]
[402715714,1768830016681,4284.78874067,0.000154,2]
[402715715,1768830021154,-175.91268047,0.00015465,2]
[402715716,1768830023442,-212.90363034,0.00015465,2]
[402715717,1768830025019,-207.27013472,0.00015465,2]
[402715718,1768830025044,-213.89128781,0.00015465,2]
[402715719,1768830031382,-86.10871219,0.00015465,2]
[402715720,1768830031405,-150.0,0.00015465,2]
[402715721,1768830031428,-84.70152738,0.00015465,2]
[402715722,1768830031763,3277.4058264,0.00015366,2]
[402715723,1768830031788,3920.11862048,0.00015366,2]
[402715724,1768830038099,-66.71612191,0.00015465,2]
[402715725,1768830038124,-330.95698179,0.00015466,2]
[402715726,1768830040118,-605.01611131,0.00015466,2]